[Event "Live Chess"]
[Site "Chess.com"]
[Date "2024.06.02"]
[Round "-"]
[White "upoe610"]
[Black "TheSmoulderingMaster"]
[Result "0-1"]
[WhiteElo "2164"]
[BlackElo "1789"]
[TimeControl "300"]
[EndTime "2:08:47 PDT"]
[Termination "TheSmoulderingMaster won by resignation"]

1. c4 {[%clk 0:04:56.6]} 1... e5 {[%clk 0:04:57.3]} 2. g3 {[%clk 0:04:55.6]}
2... Nc6 {[%clk 0:04:55.6]} 3. Bg2 {[%clk 0:04:54.1]} 3... Nf6 {[%clk
0:04:54.8]} 4. Nc3 {[%clk 0:04:52.6]} 4... Be7 {[%clk 0:04:53.1]} 5. Nf3 {[%clk
0:04:45.7]} 5... O-O {[%clk 0:04:50.8]} 6. O-O {[%clk 0:04:44.7]} 6... d6 {[%clk
0:04:49]} 7. d4 {[%clk 0:04:43.9]} 7... exd4 {[%clk 0:04:46.7]} 8. Nxd4 {[%clk
0:04:42.5]} 8... Bg4 {[%clk 0:04:44.8]} 9. Nxc6 {[%clk 0:04:40.8]} 9... bxc6
{[%clk 0:04:43.5]} 10. Bxc6 {[%clk 0:04:40]} 10... Rb8 {[%clk 0:04:42.1]} 11.
Bg2 {[%clk 0:04:38.9]} 11... Qd7 {[%clk 0:04:40.3]} 12. b3 {[%clk 0:04:37.7]}
12... Bh3 {[%clk 0:04:36.8]} 13. Re1 {[%clk 0:04:36.7]} 13... Bxg2 {[%clk
0:04:35.4]} 14. Kxg2 {[%clk 0:04:35.7]} 14... c6 {[%clk 0:04:28.6]} 15. e4
{[%clk 0:04:34.3]} 15... Qe6 {[%clk 0:04:26.3]} 16. Bb2 {[%clk 0:04:30.3]} 16...
Nd7 {[%clk 0:04:24.2]} 17. Qd4 {[%clk 0:04:25.9]} 17... Ne5 {[%clk 0:04:19.7]}
18. f4 {[%clk 0:04:24.2]} 18... Ng4 {[%clk 0:04:16.5]} 19. Nd5 {[%clk
0:04:20.6]} 19... Bf6 {[%clk 0:04:09.6]} 20. Nxf6+ {[%clk 0:04:19.6]} 20... Nxf6
{[%clk 0:04:07.7]} 21. Rad1 {[%clk 0:04:17.3]} 21... Rbd8 {[%clk 0:03:50.4]} 22.
f5 {[%clk 0:04:13]} 22... Qe7 {[%clk 0:03:44.9]} 23. e5 {[%clk 0:04:03]} 23...
dxe5 {[%clk 0:03:41.5]} 24. Qxe5 {[%clk 0:04:02.9]} 24... Qb7 {[%clk 0:03:36.8]}
25. Rxd8 {[%clk 0:04:00.9]} 25... Rxd8 {[%clk 0:03:35]} 26. Re2 {[%clk
0:03:59.5]} 26... h6 {[%clk 0:03:25.8]} 27. h3 {[%clk 0:03:53.4]} 27... Re8
{[%clk 0:03:22.7]} 28. Qxe8+ {[%clk 0:03:49.7]} 28... Nxe8 {[%clk 0:03:21.7]}
29. Rxe8+ {[%clk 0:03:49.6]} 29... Kh7 {[%clk 0:03:20.7]} 30. g4 {[%clk
0:03:45.6]} 30... Qd7 {[%clk 0:03:18.7]} 31. Re2 {[%clk 0:03:43.3]} 31... Qd3
{[%clk 0:03:17.1]} 32. Rf2 {[%clk 0:03:40.7]} 32... Qb1 {[%clk 0:03:13]} 33. h4
{[%clk 0:03:29.5]} 33... Qxa2 {[%clk 0:03:09.7]} 34. Bxg7 {[%clk 0:03:26.9]}
34... Qxb3 {[%clk 0:03:07.4]} 35. Bf6 {[%clk 0:03:22.9]} 35... Qxc4 {[%clk
0:03:04.6]} 36. Kg3 {[%clk 0:03:22.3]} 36... Qd3+ {[%clk 0:03:00.1]} 37. Rf3
{[%clk 0:03:21]} 37... Qd6+ {[%clk 0:02:58.3]} 38. Kh3 {[%clk 0:03:18.7]} 38...
Qxf6 {[%clk 0:02:57.2]} 0-1

[Event "Live Chess"]
[Site "Chess.com"]
[Date "2024.06.02"]
[Round "-"]
[White "dmitro74"]
[Black "MasterCaptainHaddock"]
[Result "1/2-1/2"]
[WhiteElo "1707"]
[BlackElo "1808"]
[TimeControl "300"]
[EndTime "2:09:01 PDT"]
[Termination "Game drawn by repetition"]

1. d4 {[%clk 0:04:51.2]} 1... e6 {[%clk 0:04:57.4]} 2. c4 {[%clk 0:04:49.5]}
2... c5 {[%clk 0:04:57]} 3. d5 {[%clk 0:04:47.5]} 3... exd5 {[%clk 0:04:48.5]}
4. cxd5 {[%clk 0:04:46.3]} 4... d6 {[%clk 0:04:38.1]} 5. e4 {[%clk 0:04:44.8]}
5... a6 {[%clk 0:04:36.2]} 6. a4 {[%clk 0:04:42.1]} 6... Nf6 {[%clk 0:04:31.5]}
7. Nc3 {[%clk 0:04:40.2]} 7... g6 {[%clk 0:04:29.6]} 8. f4 {[%clk 0:04:37.8]}
8... Bg7 {[%clk 0:04:07]} 9. Nf3 {[%clk 0:04:36.3]} 9... O-O {[%clk 0:03:53.9]}
10. Bc4 {[%clk 0:04:33.9]} 10... Re8 {[%clk 0:03:40.6]} 11. e5 {[%clk
0:04:26.5]} 11... dxe5 {[%clk 0:03:36.1]} 12. fxe5 {[%clk 0:04:25.2]} 12... Nfd7
{[%clk 0:03:32.8]} 13. e6 {[%clk 0:04:20]} 13... fxe6 {[%clk 0:03:30.7]} 14.
dxe6 {[%clk 0:04:18.5]} 14... Nb6 {[%clk 0:03:29.9]} 15. Qxd8 {[%clk 0:04:15.8]}
15... Rxd8 {[%clk 0:03:27.3]} 16. O-O {[%clk 0:04:13.4]} 16... Nxc4 {[%clk
0:03:25.6]} 17. Bg5 {[%clk 0:04:02.7]} 17... Re8 {[%clk 0:03:23]} 18. e7 {[%clk
0:04:01.1]} 18... h6 {[%clk 0:03:21.1]} 19. Bh4 {[%clk 0:03:51.3]} 19... Nc6
{[%clk 0:03:19.9]} 20. Nd5 {[%clk 0:03:37]} 20... Nxe7 {[%clk 0:02:48.5]} 21.
Bxe7 {[%clk 0:03:29.8]} 21... Rb8 {[%clk 0:02:38.1]} 22. Nf6+ {[%clk 0:03:10.1]}
22... Bxf6 {[%clk 0:02:36.4]} 23. Bxf6 {[%clk 0:03:08.4]} 23... Bf5 {[%clk
0:02:33.5]} 24. Rae1 {[%clk 0:02:59.2]} 24... Rxe1 {[%clk 0:02:31]} 25. Rxe1
{[%clk 0:02:57.5]} 25... Kf7 {[%clk 0:02:30.4]} 26. Bc3 {[%clk 0:02:50.9]} 26...
Re8 {[%clk 0:02:23.1]} 27. Ne5+ {[%clk 0:02:27.2]} 27... Nxe5 {[%clk 0:02:19]}
28. Rxe5 {[%clk 0:02:25]} 28... Rxe5 {[%clk 0:02:17]} 29. Bxe5 {[%clk
0:02:23.8]} 29... Ke6 {[%clk 0:02:16.9]} 30. Bc3 {[%clk 0:02:20.5]} 30... b6
{[%clk 0:01:37.9]} 31. Kf2 {[%clk 0:02:18.9]} 31... Bc2 {[%clk 0:01:35.4]} 32.
a5 {[%clk 0:02:13]} 32... b5 {[%clk 0:01:34.2]} 33. Ke3 {[%clk 0:02:11.2]} 33...
b4 {[%clk 0:01:17.2]} 34. Bg7 {[%clk 0:02:09]} 34... h5 {[%clk 0:01:14.6]} 35.
h4 {[%clk 0:01:51.8]} 35... Kd5 {[%clk 0:01:08.7]} 36. Kd2 {[%clk 0:01:44.2]}
36... Be4 {[%clk 0:01:04.9]} 37. g3 {[%clk 0:01:42.5]} 37... Kc4 {[%clk
0:01:02.2]} 38. Ke3 {[%clk 0:01:39.1]} 38... Bf5 {[%clk 0:00:59.5]} 39. Kd2
{[%clk 0:01:32.7]} 39... Kb5 {[%clk 0:00:52.4]} 40. Bf8 {[%clk 0:01:27.5]} 40...
c4 {[%clk 0:00:47.5]} 41. Ke3 {[%clk 0:01:20.9]} 41... Kxa5 {[%clk 0:00:45]} 42.
Kd4 {[%clk 0:01:19.7]} 42... Kb5 {[%clk 0:00:43.3]} 43. Bh6 {[%clk 0:01:13.5]}
43... Bd3 {[%clk 0:00:39.6]} 44. Bd2 {[%clk 0:01:10.6]} 44... Ka4 {[%clk
0:00:38.6]} 45. Kc5 {[%clk 0:01:06.1]} 45... a5 {[%clk 0:00:31.5]} 46. Kb6
{[%clk 0:01:01.1]} 46... Kb3 {[%clk 0:00:25.8]} 47. Kxa5 {[%clk 0:00:54.4]}
47... Kxb2 {[%clk 0:00:15]} 48. Kxb4 {[%clk 0:00:53]} 48... Kc2 {[%clk
0:00:13.9]} 49. Bc3 {[%clk 0:00:49.9]} 49... Kd1 {[%clk 0:00:13.8]} 50. Be5
{[%clk 0:00:47.4]} 50... Ke2 {[%clk 0:00:13.7]} 51. Kc3 {[%clk 0:00:45.9]} 51...
Kf3 {[%clk 0:00:13.6]} 52. Kd4 {[%clk 0:00:44.7]} 52... Be2 {[%clk 0:00:12.9]}
53. Kc3 {[%clk 0:00:41.2]} 53... Bd3 {[%clk 0:00:12.8]} 54. Kd4 {[%clk 0:00:40]}
54... Be2 {[%clk 0:00:12.7]} 55. Kc3 {[%clk 0:00:39]} 55... Bd3 {[%clk
0:00:12.6]} 1/2-1/2

[Event "Live Chess"]
[Site "Chess.com"]
[Date "2024.06.02"]
[Round "-"]
[White "LL220284LL"]
[Black "Tushinskiy"]
[Result "1-0"]
[WhiteElo "2506"]
[BlackElo "2286"]
[TimeControl "300"]
[EndTime "2:09:02 PDT"]
[Termination "LL220284LL won by resignation"]

1. g3 {[%clk 0:04:58.6]} 1... d5 {[%clk 0:04:58.8]} 2. Bg2 {[%clk 0:04:57.3]}
2... c6 {[%clk 0:04:58.7]} 3. Nf3 {[%clk 0:04:55.9]} 3... Nf6 {[%clk 0:04:57.3]}
4. b3 {[%clk 0:04:55.3]} 4... Bg4 {[%clk 0:04:55.8]} 5. Bb2 {[%clk 0:04:54.6]}
5... Bh5 {[%clk 0:04:55.7]} 6. O-O {[%clk 0:04:53.4]} 6... Nbd7 {[%clk
0:04:54.9]} 7. d3 {[%clk 0:04:52.3]} 7... Qc7 {[%clk 0:04:53.4]} 8. Nbd2 {[%clk
0:04:50.1]} 8... e5 {[%clk 0:04:52.3]} 9. Qe1 {[%clk 0:04:49]} 9... e4 {[%clk
0:04:49.3]} 10. Ng5 {[%clk 0:04:43.8]} 10... h6 {[%clk 0:04:45.1]} 11. Nh3
{[%clk 0:04:42.8]} 11... Bg6 {[%clk 0:04:39.8]} 12. Nf4 {[%clk 0:04:40.1]} 12...
Bh7 {[%clk 0:04:35.3]} 13. dxe4 {[%clk 0:04:37.7]} 13... dxe4 {[%clk 0:04:33.3]}
14. e3 {[%clk 0:04:35.2]} 14... Bd6 {[%clk 0:04:30.9]} 15. Ne2 {[%clk
0:04:33.5]} 15... O-O {[%clk 0:04:29.1]} 16. Nc4 {[%clk 0:04:31]} 16... Be7
{[%clk 0:04:25.5]} 17. a4 {[%clk 0:04:29.5]} 17... Rfe8 {[%clk 0:04:22.9]} 18.
a5 {[%clk 0:04:27.8]} 18... b5 {[%clk 0:04:15.9]} 19. axb6 {[%clk 0:04:25.2]}
19... axb6 {[%clk 0:04:14.7]} 20. Qc3 {[%clk 0:04:15.6]} 20... b5 {[%clk
0:04:09.5]} 21. Ne5 {[%clk 0:04:10.9]} 21... Nxe5 {[%clk 0:04:05.4]} 22. Qxe5
{[%clk 0:04:09.5]} 22... Bd6 {[%clk 0:04:04]} 23. Qc3 {[%clk 0:03:49.1]} 23...
Be5 {[%clk 0:04:01.1]} 24. Nd4 {[%clk 0:03:41.1]} 24... Rac8 {[%clk 0:03:52.8]}
25. Qe1 {[%clk 0:03:21.6]} 25... Qb6 {[%clk 0:03:47.6]} 26. Qb1 {[%clk
0:03:15.6]} 26... c5 {[%clk 0:03:39.7]} 27. Ne2 {[%clk 0:03:12.6]} 27... Bxb2
{[%clk 0:03:34.2]} 28. Qxb2 {[%clk 0:03:12.5]} 28... Bf5 {[%clk 0:03:27.3]} 29.
Rfd1 {[%clk 0:03:09]} 29... Bg4 {[%clk 0:03:23.3]} 30. Rd2 {[%clk 0:03:05.1]}
30... c4 {[%clk 0:03:21.7]} 31. bxc4 {[%clk 0:02:57.9]} 31... Bxe2 {[%clk
0:03:20.2]} 32. Rxe2 {[%clk 0:02:56.5]} 32... Rxc4 {[%clk 0:03:19.8]} 33. Rd2
{[%clk 0:02:55.1]} 33... Rec8 {[%clk 0:03:18.9]} 34. Rad1 {[%clk 0:02:52.1]}
34... Qc7 {[%clk 0:03:13.4]} 35. Qxb5 {[%clk 0:02:46.3]} 35... Rxc2 {[%clk
0:03:11.6]} 36. Qe2 {[%clk 0:02:38]} 36... Rxd2 {[%clk 0:03:09.4]} 37. Qxd2
{[%clk 0:02:37.9]} 37... Qc2 {[%clk 0:02:59.2]} 38. Qxc2 {[%clk 0:02:31.3]}
38... Rxc2 {[%clk 0:02:59.1]} 39. h3 {[%clk 0:02:30.7]} 39... g6 {[%clk
0:02:57.4]} 40. Bf1 {[%clk 0:02:25.9]} 40... Kg7 {[%clk 0:02:53.5]} 41. Kg2
{[%clk 0:02:20.6]} 41... Ne8 {[%clk 0:02:46.7]} 42. Rd8 {[%clk 0:02:17.7]} 42...
Nc7 {[%clk 0:02:40]} 43. Rc8 {[%clk 0:02:14.7]} 43... Rc5 {[%clk 0:02:38.9]} 44.
Be2 {[%clk 0:02:10.3]} 44... Ne6 {[%clk 0:02:33.9]} 45. Ra8 {[%clk 0:02:07.3]}
45... Rc2 {[%clk 0:02:26]} 46. Bg4 {[%clk 0:02:03.6]} 46... f5 {[%clk
0:02:24.2]} 47. Bd1 {[%clk 0:02:01.5]} 47... Rd2 {[%clk 0:02:22.2]} 48. Bb3
{[%clk 0:01:59.7]} 48... Nc5 {[%clk 0:02:20.9]} 49. Ra7+ {[%clk 0:01:58.5]}
49... Kf6 {[%clk 0:02:19.7]} 50. Rf7+ {[%clk 0:01:53.3]} 50... Ke5 {[%clk
0:02:17.3]} 51. Bc4 {[%clk 0:01:52]} 51... Rc2 {[%clk 0:02:10.7]} 52. Bb5 {[%clk
0:01:48.4]} 52... Rb2 {[%clk 0:02:06.4]} 53. Bc4 {[%clk 0:01:47]} 53... Na4
{[%clk 0:01:50.2]} 54. Re7+ {[%clk 0:01:33.9]} 54... Kd6 {[%clk 0:01:49]} 55.
Re6+ {[%clk 0:01:32.9]} 55... Kc5 {[%clk 0:01:48]} 56. Bf1 {[%clk 0:01:30.5]}
56... Nc3 {[%clk 0:01:47]} 57. Rxg6 {[%clk 0:01:20.8]} 57... Nd1 {[%clk
0:01:43.2]} 58. Rxh6 {[%clk 0:01:18.8]} 58... Rxf2+ {[%clk 0:01:41.4]} 59. Kg1
{[%clk 0:01:17.6]} 59... Rb2 {[%clk 0:01:35]} 60. Rh8 {[%clk 0:01:05]} 60...
Nxe3 {[%clk 0:01:32.4]} 61. Rc8+ {[%clk 0:01:04]} 61... Kd6 {[%clk 0:01:31.1]}
62. Rc1 {[%clk 0:00:56]} 62... Ke5 {[%clk 0:01:27.3]} 63. h4 {[%clk 0:00:50.5]}
63... f4 {[%clk 0:01:19.1]} 64. gxf4+ {[%clk 0:00:48.7]} 64... Kxf4 {[%clk
0:01:19]} 65. h5 {[%clk 0:00:44.4]} 65... Ng4 {[%clk 0:01:08.6]} 66. Bh3 {[%clk
0:00:34.9]} 66... Nf2 {[%clk 0:01:01.6]} 67. Rf1 {[%clk 0:00:30.7]} 67... Kg3
{[%clk 0:00:48.4]} 68. Bg2 {[%clk 0:00:29.6]} 68... e3 {[%clk 0:00:46.7]} 69. h6
{[%clk 0:00:22.2]} 69... Ng4 {[%clk 0:00:44.7]} 70. Rf3+ {[%clk 0:00:18.6]}
70... Kh4 {[%clk 0:00:43.4]} 71. h7 {[%clk 0:00:16.5]} 71... Rb8 {[%clk
0:00:39]} 72. Rh3+ {[%clk 0:00:15.3]} 72... Kg5 {[%clk 0:00:36.8]} 73. h8=Q
{[%clk 0:00:15.2]} 73... Rb1+ {[%clk 0:00:30.1]} 74. Bf1 {[%clk 0:00:14.2]}
74... e2 {[%clk 0:00:30]} 75. Qg7+ {[%clk 0:00:13.2]} 75... Kf4 {[%clk
0:00:28.6]} 76. Qd4+ {[%clk 0:00:10.9]} 76... Kg5 {[%clk 0:00:26.2]} 77. Qd5+
{[%clk 0:00:09.9]} 77... Kf6 {[%clk 0:00:23.8]} 78. Qf3+ {[%clk 0:00:08.6]}
78... Kg5 {[%clk 0:00:22.7]} 79. Qd5+ {[%clk 0:00:07.3]} 79... Kf6 {[%clk
0:00:21.1]} 80. Rf3+ {[%clk 0:00:06.8]} 80... Kg7 {[%clk 0:00:18.9]} 81. Qg5+
{[%clk 0:00:05.6]} 81... Kh8 {[%clk 0:00:16.7]} 82. Rh3+ {[%clk 0:00:03.5]} 1-0

[Event "Live Chess"]
[Site "Chess.com"]
[Date "2024.06.02"]
[Round "-"]
[White "KeithArkell"]
[Black "elis06"]
[Result "1-0"]
[WhiteElo "2409"]
[BlackElo "2171"]
[TimeControl "300"]
[EndTime "2:09:09 PDT"]
[Termination "KeithArkell won by checkmate"]

1. d4 {[%clk 0:04:57.6]} 1... d5 {[%clk 0:04:58.6]} 2. c4 {[%clk 0:04:52.4]}
2... e6 {[%clk 0:04:57.9]} 3. Nf3 {[%clk 0:04:51.7]} 3... Nf6 {[%clk 0:04:57.2]}
4. cxd5 {[%clk 0:04:51.1]} 4... exd5 {[%clk 0:04:56.5]} 5. Nc3 {[%clk
0:04:50.8]} 5... c6 {[%clk 0:04:55.6]} 6. Qc2 {[%clk 0:04:48.9]} 6... Be7 {[%clk
0:04:53.9]} 7. Bg5 {[%clk 0:04:48]} 7... Nbd7 {[%clk 0:04:53]} 8. e3 {[%clk
0:04:47.5]} 8... h6 {[%clk 0:04:52]} 9. Bh4 {[%clk 0:04:46.3]} 9... O-O {[%clk
0:04:49.3]} 10. Bd3 {[%clk 0:04:45.5]} 10... Re8 {[%clk 0:04:42.2]} 11. O-O
{[%clk 0:04:44.5]} 11... Nf8 {[%clk 0:04:23.2]} 12. Bxf6 {[%clk 0:04:42.6]}
12... Bxf6 {[%clk 0:04:21.1]} 13. b4 {[%clk 0:04:42.4]} 13... Ne6 {[%clk
0:04:14.3]} 14. Bh7+ {[%clk 0:04:37.5]} 14... Kh8 {[%clk 0:04:11.7]} 15. Bf5
{[%clk 0:04:37]} 15... a5 {[%clk 0:04:05.7]} 16. a3 {[%clk 0:04:32.2]} 16...
axb4 {[%clk 0:03:59.7]} 17. axb4 {[%clk 0:04:31.4]} 17... Rxa1 {[%clk
0:03:57.8]} 18. Rxa1 {[%clk 0:04:31.3]} 18... Nc7 {[%clk 0:03:55.2]} 19. Bxc8
{[%clk 0:04:24.4]} 19... Qxc8 {[%clk 0:03:54.4]} 20. g3 {[%clk 0:04:18.2]} 20...
Qg4 {[%clk 0:03:39.8]} 21. Kg2 {[%clk 0:04:16.2]} 21... h5 {[%clk 0:03:21.9]}
22. h3 {[%clk 0:04:15.2]} 22... Qd7 {[%clk 0:03:12.4]} 23. Ra7 {[%clk
0:04:12.9]} 23... Ne6 {[%clk 0:02:55.5]} 24. Ne2 {[%clk 0:04:07.5]} 24... g6
{[%clk 0:02:51]} 25. Nc1 {[%clk 0:04:05.9]} 25... Bd8 {[%clk 0:02:45.4]} 26. Nd3
{[%clk 0:04:04.9]} 26... Bb6 {[%clk 0:02:44.3]} 27. Ra1 {[%clk 0:04:03.5]} 27...
Qe7 {[%clk 0:02:42.6]} 28. Nc5 {[%clk 0:04:01.9]} 28... Kg7 {[%clk 0:02:37.9]}
29. Nxe6+ {[%clk 0:03:58.9]} 29... Qxe6 {[%clk 0:02:37.1]} 30. b5 {[%clk
0:03:55.6]} 30... Rc8 {[%clk 0:02:31.7]} 31. bxc6 {[%clk 0:03:54.3]} 31... bxc6
{[%clk 0:02:30.4]} 32. Ra6 {[%clk 0:03:50.8]} 32... Rb8 {[%clk 0:02:04.9]} 33.
Ne5 {[%clk 0:03:45.9]} 33... c5 {[%clk 0:01:46.6]} 34. dxc5 {[%clk 0:03:44.9]}
34... Qxe5 {[%clk 0:01:45.1]} 35. Rxb6 {[%clk 0:03:43.5]} 35... Rc8 {[%clk
0:01:41.8]} 36. c6 {[%clk 0:03:40.2]} 36... d4 {[%clk 0:01:39.8]} 37. Qb2 {[%clk
0:03:29.9]} 37... Qd5+ {[%clk 0:01:36.8]} 38. Kg1 {[%clk 0:03:27.4]} 38... Rxc6
{[%clk 0:01:33.1]} 39. Rxc6 {[%clk 0:03:26.6]} 39... Qxc6 {[%clk 0:01:32.4]} 40.
Qxd4+ {[%clk 0:03:25.9]} 40... Kh7 {[%clk 0:01:31.4]} 41. g4 {[%clk 0:03:25.3]}
41... Qc1+ {[%clk 0:01:30.3]} 42. Kg2 {[%clk 0:03:24.2]} 42... Qc6+ {[%clk
0:01:29.4]} 43. e4 {[%clk 0:03:22.3]} 43... hxg4 {[%clk 0:01:28.3]} 44. hxg4
{[%clk 0:03:21.7]} 44... Qe6 {[%clk 0:01:27.5]} 45. Kg3 {[%clk 0:03:20.3]} 45...
Qc6 {[%clk 0:01:26.3]} 46. Qd5 {[%clk 0:03:19.3]} 46... Qc7+ {[%clk 0:01:25.6]}
47. e5 {[%clk 0:03:18]} 47... Qc3+ {[%clk 0:01:24.3]} 48. Kg2 {[%clk 0:03:15.8]}
48... Kg7 {[%clk 0:01:23.6]} 49. Qe4 {[%clk 0:03:14.2]} 49... Qc7 {[%clk
0:01:22]} 50. Qf4 {[%clk 0:03:10.5]} 50... Qc6+ {[%clk 0:01:21.2]} 51. Kg3
{[%clk 0:03:09.2]} 51... Qc3+ {[%clk 0:01:20.4]} 52. Qe3 {[%clk 0:03:04.7]}
52... Qc6 {[%clk 0:01:18.8]} 53. Qf3 {[%clk 0:03:01.5]} 53... Qc7 {[%clk
0:01:17.7]} 54. Qf6+ {[%clk 0:03:00.2]} 54... Kg8 {[%clk 0:01:17.2]} 55. Kh4
{[%clk 0:02:49.7]} 55... Qc1 {[%clk 0:01:16.2]} 56. e6 {[%clk 0:02:43.7]} 56...
Qh6+ {[%clk 0:01:06.7]} 57. Kg3 {[%clk 0:02:41.7]} 57... fxe6 {[%clk 0:01:05.8]}
58. Qxe6+ {[%clk 0:02:40.8]} 58... Kg7 {[%clk 0:01:04.6]} 59. Qe7+ {[%clk
0:02:40.3]} 59... Kg8 {[%clk 0:01:03.8]} 60. g5 {[%clk 0:02:19.1]} 60... Qh1
{[%clk 0:01:00.6]} 61. Qe6+ {[%clk 0:02:16.6]} 61... Kg7 {[%clk 0:00:59.9]} 62.
Qf6+ {[%clk 0:02:15.8]} 62... Kh7 {[%clk 0:00:57.4]} 63. Qf7+ {[%clk 0:02:13.3]}
63... Kh8 {[%clk 0:00:56.7]} 64. Qf4 {[%clk 0:02:09.3]} 64... Qg1+ {[%clk
0:00:55.2]} 65. Kf3 {[%clk 0:02:08]} 65... Qd1+ {[%clk 0:00:53.9]} 66. Kg2
{[%clk 0:02:07]} 66... Qd5+ {[%clk 0:00:52.2]} 67. Kg3 {[%clk 0:02:05.5]} 67...
Qd3+ {[%clk 0:00:51.1]} 68. f3 {[%clk 0:02:04.2]} 68... Qf1 {[%clk 0:00:49.1]}
69. Qf8+ {[%clk 0:02:02.8]} 69... Kh7 {[%clk 0:00:48.2]} 70. Qh6+ {[%clk
0:02:02.2]} 70... Kg8 {[%clk 0:00:46.7]} 71. Qxg6+ {[%clk 0:02:01.6]} 71... Kh8
{[%clk 0:00:46.2]} 72. Qf6+ {[%clk 0:02:00.9]} 72... Kg8 {[%clk 0:00:45.3]} 73.
Qd4 {[%clk 0:01:58.4]} 73... Qe1+ {[%clk 0:00:43.6]} 74. Kg4 {[%clk 0:01:57.5]}
74... Qe6+ {[%clk 0:00:41.1]} 75. Kg3 {[%clk 0:01:53.4]} 75... Qe1+ {[%clk
0:00:40.2]} 76. Kf4 {[%clk 0:01:52.5]} 76... Qh4+ {[%clk 0:00:38.2]} 77. Ke3
{[%clk 0:01:43.1]} 77... Qxg5+ {[%clk 0:00:36.7]} 78. Qf4 {[%clk 0:01:42.3]}
78... Qxf4+ {[%clk 0:00:35.3]} 79. Kxf4 {[%clk 0:01:41.4]} 79... Kf8 {[%clk
0:00:34]} 80. Ke5 {[%clk 0:01:40.1]} 80... Ke7 {[%clk 0:00:30]} 81. Kf5 {[%clk
0:01:38.1]} 81... Kf7 {[%clk 0:00:29]} 82. f4 {[%clk 0:01:37.7]} 82... Kg8
{[%clk 0:00:26.7]} 83. Kg6 {[%clk 0:01:36.7]} 83... Kf8 {[%clk 0:00:25.8]} 84.
Kf6 {[%clk 0:01:36.1]} 84... Kg8 {[%clk 0:00:24.3]} 85. Ke7 {[%clk 0:01:35.4]}
85... Kh7 {[%clk 0:00:23.6]} 86. f5 {[%clk 0:01:35]} 86... Kg7 {[%clk
0:00:22.9]} 87. f6+ {[%clk 0:01:34.6]} 87... Kh8 {[%clk 0:00:22.4]} 88. f7
{[%clk 0:01:34.3]} 88... Kg7 {[%clk 0:00:22]} 89. f8=Q+ {[%clk 0:01:33.9]} 89...
Kh7 {[%clk 0:00:21.5]} 90. Qf6 {[%clk 0:01:32.2]} 90... Kg8 {[%clk 0:00:20.7]}
91. Qg5+ {[%clk 0:01:31.6]} 91... Kh8 {[%clk 0:00:20.1]} 92. Kf7 {[%clk
0:01:31.3]} 92... Kh7 {[%clk 0:00:19.2]} 93. Qh5# {[%clk 0:01:30.9]} 1-0

[Event "Live Chess"]
[Site "Chess.com"]
[Date "2024.06.02"]
[Round "-"]
[White "CarmelJane"]
[Black "booktrunk"]
[Result "1-0"]
[WhiteElo "2056"]
[BlackElo "1508"]
[TimeControl "300"]
[EndTime "2:09:26 PDT"]
[Termination "CarmelJane won by resignation"]

1. e4 {[%clk 0:04:57.8]} 1... b6 {[%clk 0:04:48.8]} 2. d4 {[%clk 0:04:52.8]}
2... Bb7 {[%clk 0:04:48.7]} 3. Bd3 {[%clk 0:04:50.5]} 3... e6 {[%clk 0:04:48.5]}
4. Qe2 {[%clk 0:04:46.9]} 4... h6 {[%clk 0:04:47.2]} 5. Nf3 {[%clk 0:04:45.2]}
5... Nf6 {[%clk 0:04:44.9]} 6. O-O {[%clk 0:04:44]} 6... c5 {[%clk 0:04:41.2]}
7. e5 {[%clk 0:04:38.4]} 7... Nd5 {[%clk 0:04:37.6]} 8. Be4 {[%clk 0:04:35.8]}
8... cxd4 {[%clk 0:04:35.2]} 9. Nxd4 {[%clk 0:04:27.7]} 9... Bc5 {[%clk
0:04:33.9]} 10. Be3 {[%clk 0:04:13.1]} 10... Qh4 {[%clk 0:04:18.7]} 11. Bxd5
{[%clk 0:03:23.9]} 11... Bxd5 {[%clk 0:04:14.2]} 12. Nb5 {[%clk 0:03:20.1]}
12... Kd8 {[%clk 0:04:09.6]} 13. Bxc5 {[%clk 0:03:16.9]} 13... bxc5 {[%clk
0:04:07.8]} 14. Nd6 {[%clk 0:03:09.3]} 14... Ke7 {[%clk 0:03:52.1]} 15. c4
{[%clk 0:03:07.1]} 15... Bc6 {[%clk 0:03:47.9]} 16. Nc3 {[%clk 0:02:59.3]} 16...
Na6 {[%clk 0:03:45.5]} 17. f4 {[%clk 0:02:53.2]} 17... g5 {[%clk 0:03:34]} 18.
f5 {[%clk 0:02:52.2]} 18... Nb4 {[%clk 0:03:20.1]} 19. fxe6 {[%clk 0:02:46.6]}
19... Rhf8 {[%clk 0:03:11.8]} 20. exf7 {[%clk 0:02:29.3]} 20... h5 {[%clk
0:02:56.6]} 21. a3 {[%clk 0:02:26.1]} 21... Na6 {[%clk 0:02:53.5]} 22. Nf5+
{[%clk 0:02:21.7]} 1-0

[Event "Live Chess"]
[Site "Chess.com"]
[Date "2024.06.02"]
[Round "-"]
[White "DavrosLight"]
[Black "Eva3337"]
[Result "1-0"]
[WhiteElo "802"]
[BlackElo "1169"]
[TimeControl "300"]
[EndTime "2:09:31 PDT"]
[Termination "DavrosLight won by checkmate"]

1. e4 {[%clk 0:04:58.1]} 1... Nc6 {[%clk 0:04:58.2]} 2. Nf3 {[%clk 0:04:56.2]}
2... e5 {[%clk 0:04:54.9]} 3. d4 {[%clk 0:04:53.9]} 3... Bd6 {[%clk 0:04:49.1]}
4. dxe5 {[%clk 0:04:52.3]} 4... Nxe5 {[%clk 0:04:46]} 5. Nxe5 {[%clk 0:04:49.5]}
5... Bxe5 {[%clk 0:04:45.6]} 6. Nc3 {[%clk 0:04:43.2]} 6... Nf6 {[%clk
0:04:38.7]} 7. Be3 {[%clk 0:04:35.6]} 7... O-O {[%clk 0:04:36.9]} 8. Bd3 {[%clk
0:04:29.2]} 8... Re8 {[%clk 0:04:35.2]} 9. O-O {[%clk 0:04:26.3]} 9... b6 {[%clk
0:04:29.3]} 10. Qd2 {[%clk 0:04:24.6]} 10... Bb7 {[%clk 0:04:27]} 11. f4 {[%clk
0:04:23.5]} 11... Bxc3 {[%clk 0:04:16]} 12. Qxc3 {[%clk 0:04:05.4]} 12... Bxe4
{[%clk 0:04:10.4]} 13. Bxe4 {[%clk 0:03:57.2]} 13... Nxe4 {[%clk 0:04:00.4]} 14.
Qd3 {[%clk 0:03:46.4]} 14... Nc5 {[%clk 0:03:55]} 15. Qc3 {[%clk 0:03:32.5]}
15... d6 {[%clk 0:03:42.8]} 16. Rf3 {[%clk 0:03:24.2]} 16... Qd7 {[%clk
0:03:20.4]} 17. Rg3 {[%clk 0:03:22]} 17... g6 {[%clk 0:03:14.2]} 18. Bd4 {[%clk
0:03:18.3]} 18... Ne4 {[%clk 0:03:11]} 19. Rxg6+ {[%clk 0:02:55.4]} 19... fxg6
{[%clk 0:03:04.5]} 20. Qc4+ {[%clk 0:02:50.5]} 20... d5 {[%clk 0:03:00.1]} 21.
Qb4 {[%clk 0:02:36.5]} 21... c5 {[%clk 0:02:51.7]} 22. Qb3 {[%clk 0:02:23.4]}
22... cxd4 {[%clk 0:02:48.6]} 23. Rd1 {[%clk 0:02:18.8]} 23... Nc5 {[%clk
0:02:36.5]} 24. Qg3 {[%clk 0:02:07.7]} 24... Re4 {[%clk 0:02:23.8]} 25. f5
{[%clk 0:01:53.1]} 25... Qxf5 {[%clk 0:02:22]} 26. Rf1 {[%clk 0:01:34.5]} 26...
Qg4 {[%clk 0:02:12.1]} 27. Qd6 {[%clk 0:01:08]} 27... Rf8 {[%clk 0:01:53.1]} 28.
Qxf8# {[%clk 0:00:53.7]} 1-0